[Event "Late-Titled-Tuesday-Blitz-November-28-2023"]
[Site "Chess.com"]
[Date "2023.11.28"]
[Round "3"]
[White "LUISMIGUELOV"]
[Black "PowerThinking2650"]
[Result "0-1"]
[WhiteElo "2200"]
[BlackElo "2457"]
[TimeControl "180+1"]
[EndTime "14:27:19 PST"]
[Termination "PowerThinking2650 won by checkmate"]

1. d4 {[%clk 0:03:00.9]} 1... Nf6 {[%clk 0:02:59.1]} 2. c3 {[%clk 0:03:00.8]}
2... g6 {[%clk 0:02:56.9]} 3. Bg5 {[%clk 0:03:01.1]} 3... Bg7 {[%clk 0:02:56.8]}
4. Nd2 {[%clk 0:03:00.8]} 4... d5 {[%clk 0:02:56.8]} 5. h4 {[%clk 0:02:59.6]}
5... h6 {[%clk 0:02:56.4]} 6. Bf4 {[%clk 0:02:58.5]} 6... O-O {[%clk 0:02:54.7]}
7. g3 {[%clk 0:02:58]} 7... c5 {[%clk 0:02:52]} 8. dxc5 {[%clk 0:02:56.5]} 8...
Nbd7 {[%clk 0:02:39.8]} 9. Nb3 {[%clk 0:02:44.4]} 9... e5 {[%clk 0:02:27.2]} 10.
Be3 {[%clk 0:02:42.6]} 10... a5 {[%clk 0:02:18.2]} 11. a4 {[%clk 0:02:41.2]}
11... b6 {[%clk 0:01:37.7]} 12. cxb6 {[%clk 0:02:36.8]} 12... Nxb6 {[%clk
0:01:37.6]} 13. Bg2 {[%clk 0:02:36.4]} 13... Nc4 {[%clk 0:01:19.8]} 14. Bc1
{[%clk 0:02:28]} 14... Ba6 {[%clk 0:00:58.5]} 15. Nf3 {[%clk 0:02:26.8]} 15...
Rb8 {[%clk 0:00:37.9]} 16. O-O {[%clk 0:02:25.1]} 16... Re8 {[%clk 0:00:29.9]}
17. Rb1 {[%clk 0:02:17]} 17... Qd7 {[%clk 0:00:27.5]} 18. Nbd2 {[%clk
0:02:15.6]} 18... Nb6 {[%clk 0:00:14]} 19. b3 {[%clk 0:02:12.7]} 19... e4 {[%clk
0:00:14.1]} 20. Nd4 {[%clk 0:02:11]} 20... e3 {[%clk 0:00:14.6]} 21. fxe3 {[%clk
0:02:07.7]} 21... Ng4 {[%clk 0:00:14.8]} 22. N2f3 {[%clk 0:02:01.5]} 22... Qd6
{[%clk 0:00:15]} 23. Qe1 {[%clk 0:01:58.3]} 23... Nxe3 {[%clk 0:00:14]} 24. Bxe3
{[%clk 0:01:56.9]} 24... Rxe3 {[%clk 0:00:14.9]} 25. Nb5 {[%clk 0:01:45.7]}
25... Bxb5 {[%clk 0:00:13.7]} 26. axb5 {[%clk 0:01:45.7]} 26... Rbe8 {[%clk
0:00:13.4]} 27. Nd4 {[%clk 0:01:34.8]} 27... Rxg3 {[%clk 0:00:08.7]} 28. Qf2
{[%clk 0:01:26.4]} 28... f5 {[%clk 0:00:08.8]} 29. Rbc1 {[%clk 0:01:17.8]} 29...
Rg4 {[%clk 0:00:08.3]} 30. Nc6 {[%clk 0:01:14.2]} 30... Nd7 {[%clk 0:00:06.1]}
31. Rcd1 {[%clk 0:01:11.6]} 31... Nf6 {[%clk 0:00:05]} 32. c4 {[%clk 0:01:08.7]}
32... Ne4 {[%clk 0:00:03.3]} 33. Qf3 {[%clk 0:01:00.8]} 33... Qf6 {[%clk
0:00:02.9]} 34. Rxd5 {[%clk 0:00:58.2]} 34... Qxh4 {[%clk 0:00:03.1]} 35. Nd4
{[%clk 0:00:47]} 35... Ng3 {[%clk 0:00:03.2]} 36. Nxf5 {[%clk 0:00:44]} 36...
gxf5 {[%clk 0:00:03.1]} 37. Rxf5 {[%clk 0:00:43.2]} 37... Nxe2+ {[%clk 0:00:03]}
38. Qxe2 {[%clk 0:00:39.4]} 38... Rxe2 {[%clk 0:00:03.9]} 39. R5f2 {[%clk
0:00:24]} 39... Rxf2 {[%clk 0:00:04.2]} 40. Rxf2 {[%clk 0:00:24.1]} 40... Bd4
{[%clk 0:00:04.8]} 41. Kf1 {[%clk 0:00:23.2]} 41... Qxf2# {[%clk 0:00:05]} 0-1

[Event "Late-Titled-Tuesday-Blitz-November-28-2023"]
[Site "Chess.com"]
[Date "2023.11.28"]
[Round "3"]
[White "DuleMudule"]
[Black "SnekkerAndersen"]
[Result "1-0"]
[WhiteElo "2863"]
[BlackElo "2564"]
[TimeControl "180+1"]
[EndTime "14:27:20 PST"]
[Termination "DuleMudule won by resignation"]

1. d4 {[%clk 0:03:00.9]} 1... d6 {[%clk 0:02:57.7]} 2. e4 {[%clk 0:03:00.6]}
2... Nf6 {[%clk 0:02:57.6]} 3. Nc3 {[%clk 0:03:01.2]} 3... e5 {[%clk 0:02:58]}
4. dxe5 {[%clk 0:03:00.5]} 4... dxe5 {[%clk 0:02:58.9]} 5. Qxd8+ {[%clk
0:03:00.8]} 5... Kxd8 {[%clk 0:02:59.8]} 6. f4 {[%clk 0:03:01.2]} 6... Bb4
{[%clk 0:02:54]} 7. Bd3 {[%clk 0:02:56.5]} 7... Nc6 {[%clk 0:02:51.9]} 8. Nf3
{[%clk 0:02:55.7]} 8... Bg4 {[%clk 0:02:38.9]} 9. fxe5 {[%clk 0:02:42.8]} 9...
Nd7 {[%clk 0:02:37.7]} 10. Bf4 {[%clk 0:02:29.3]} 10... Bxf3 {[%clk 0:02:36.1]}
11. gxf3 {[%clk 0:02:29.1]} 11... Bxc3+ {[%clk 0:02:36.4]} 12. bxc3 {[%clk
0:02:28.7]} 12... Ndxe5 {[%clk 0:02:37]} 13. O-O-O {[%clk 0:02:08.7]} 13... Ke7
{[%clk 0:02:35.7]} 14. Rhg1 {[%clk 0:02:08.4]} 14... g6 {[%clk 0:02:32]} 15.
Rgf1 {[%clk 0:01:52.4]} 15... a6 {[%clk 0:02:24.5]} 16. Bg3 {[%clk 0:01:45.5]}
16... Rhd8 {[%clk 0:02:20]} 17. f4 {[%clk 0:01:45.3]} 17... Nxd3+ {[%clk
0:02:19.8]} 18. cxd3 {[%clk 0:01:45]} 18... Rd7 {[%clk 0:02:00.1]} 19. f5 {[%clk
0:01:44.4]} 19... f6 {[%clk 0:01:52.5]} 20. d4 {[%clk 0:01:35.7]} 20... Re8
{[%clk 0:01:41.9]} 21. fxg6 {[%clk 0:01:30.6]} 21... hxg6 {[%clk 0:01:42.1]} 22.
Rf4 {[%clk 0:01:30.9]} 22... Kf7 {[%clk 0:01:21.3]} 23. Rdf1 {[%clk 0:01:28.2]}
23... Kg7 {[%clk 0:01:21.7]} 24. Kc2 {[%clk 0:01:20.3]} 24... Nd8 {[%clk
0:01:08.4]} 25. Rg4 {[%clk 0:01:03.9]} 25... Nf7 {[%clk 0:01:03.7]} 26. h4
{[%clk 0:00:51.2]} 26... c6 {[%clk 0:00:57]} 27. Rgf4 {[%clk 0:00:44.1]} 27...
Nd6 {[%clk 0:00:52.2]} 28. Kd3 {[%clk 0:00:41.8]} 28... b5 {[%clk 0:00:33.1]}
29. h5 {[%clk 0:00:21.9]} 29... gxh5 {[%clk 0:00:24.8]} 30. Bh4 {[%clk
0:00:21.9]} 30... f5 {[%clk 0:00:20.4]} 31. e5 {[%clk 0:00:20.3]} 31... Nc4
{[%clk 0:00:20.7]} 32. Bf6+ {[%clk 0:00:20.3]} 32... Kf7 {[%clk 0:00:20.1]} 33.
Rxf5 {[%clk 0:00:20.6]} 33... Ke6 {[%clk 0:00:20.8]} 34. Bh4 {[%clk 0:00:20.4]}
34... c5 {[%clk 0:00:17.6]} 35. Rf6+ {[%clk 0:00:19.9]} 35... Kd5 {[%clk
0:00:18.1]} 36. Rxa6 {[%clk 0:00:18.8]} 36... cxd4 {[%clk 0:00:17.8]} 37. cxd4
{[%clk 0:00:19.4]} 37... Rg8 {[%clk 0:00:13.7]} 38. e6 {[%clk 0:00:19.6]} 38...
Rc7 {[%clk 0:00:10.9]} 39. Rf5+ {[%clk 0:00:19.6]} 1-0

[Event "Late-Titled-Tuesday-Blitz-November-28-2023"]
[Site "Chess.com"]
[Date "2023.11.28"]
[Round "3"]
[White "IMRosen"]
[Black "el_sporco"]
[Result "1-0"]
[WhiteElo "2701"]
[BlackElo "2450"]
[TimeControl "180+1"]
[EndTime "14:27:23 PST"]
[Termination "IMRosen won by resignation"]

1. e4 {[%clk 0:03:00.9]} 1... c5 {[%clk 0:02:48.5]} 2. Nc3 {[%clk 0:03:00.6]}
2... Nc6 {[%clk 0:02:47.4]} 3. Bb5 {[%clk 0:03:00.5]} 3... g6 {[%clk 0:02:45.8]}
4. Bxc6 {[%clk 0:03:00.5]} 4... dxc6 {[%clk 0:02:45.7]} 5. d3 {[%clk 0:03:01.3]}
5... Bg7 {[%clk 0:02:45.6]} 6. f4 {[%clk 0:03:02]} 6... Nf6 {[%clk 0:02:43.6]}
7. Nf3 {[%clk 0:03:02.7]} 7... O-O {[%clk 0:02:43.1]} 8. O-O {[%clk 0:03:03.5]}
8... Nd7 {[%clk 0:02:40.2]} 9. Qe1 {[%clk 0:03:03.3]} 9... e6 {[%clk 0:02:33.1]}
10. Rb1 {[%clk 0:03:01.1]} 10... b5 {[%clk 0:02:23.9]} 11. Kh1 {[%clk 0:02:50]}
11... a5 {[%clk 0:02:16.3]} 12. a4 {[%clk 0:02:47]} 12... b4 {[%clk 0:02:15.8]}
13. Ne2 {[%clk 0:02:42]} 13... Nb6 {[%clk 0:02:07]} 14. b3 {[%clk 0:02:41.3]}
14... Qc7 {[%clk 0:01:55.2]} 15. Be3 {[%clk 0:02:41.2]} 15... Nd7 {[%clk
0:01:54.2]} 16. Qf2 {[%clk 0:02:38.6]} 16... Qd6 {[%clk 0:01:51.6]} 17. Rbd1
{[%clk 0:02:37.7]} 17... Qe7 {[%clk 0:01:50.8]} 18. Nd2 {[%clk 0:02:20]} 18...
Ba6 {[%clk 0:01:46.4]} 19. Qg3 {[%clk 0:02:09.6]} 19... Rfe8 {[%clk 0:01:41.8]}
20. Ng1 {[%clk 0:02:00.5]} 20... Kh8 {[%clk 0:01:41.6]} 21. Ngf3 {[%clk
0:02:00.6]} 21... h6 {[%clk 0:01:41.2]} 22. Qh3 {[%clk 0:01:58.1]} 22... Qf8
{[%clk 0:01:35.3]} 23. g4 {[%clk 0:01:47.8]} 23... Rad8 {[%clk 0:01:26.8]} 24.
g5 {[%clk 0:01:43.3]} 24... h5 {[%clk 0:01:25.6]} 25. e5 {[%clk 0:01:43.8]}
25... Nb6 {[%clk 0:01:23.4]} 26. Ne4 {[%clk 0:01:42.8]} 26... Nd5 {[%clk
0:01:23.6]} 27. Bd2 {[%clk 0:01:42.6]} 27... Qe7 {[%clk 0:01:16.4]} 28. Nf6
{[%clk 0:01:40.6]} 28... Rd7 {[%clk 0:01:08.5]} 29. Rg1 {[%clk 0:01:16.9]} 29...
Bxf6 {[%clk 0:00:30.7]} 30. gxf6 {[%clk 0:00:59.8]} 30... Qf8 {[%clk 0:00:30.8]}
31. Rg5 {[%clk 0:00:56.3]} 31... Qh6 {[%clk 0:00:25.5]} 32. Rdg1 {[%clk
0:00:45.4]} 32... Rg8 {[%clk 0:00:17.7]} 33. Qh4 {[%clk 0:00:44.5]} 33... Bb7
{[%clk 0:00:17.4]} 34. R1g3 {[%clk 0:00:41.9]} 34... c4 {[%clk 0:00:17.6]} 35.
bxc4 {[%clk 0:00:42.2]} 35... Nb6 {[%clk 0:00:17.9]} 36. c5 {[%clk 0:00:39.1]}
36... Nxa4 {[%clk 0:00:17.4]} 37. f5 {[%clk 0:00:21.8]} 37... Nxc5 {[%clk
0:00:08]} 38. fxg6 {[%clk 0:00:18.2]} 38... fxg6 {[%clk 0:00:06.7]} 39. Rxg6
{[%clk 0:00:16.2]} 39... Qh7 {[%clk 0:00:06.8]} 40. Rxg8+ {[%clk 0:00:15.7]} 1-0

[Event "Late-Titled-Tuesday-Blitz-November-28-2023"]
[Site "Chess.com"]
[Date "2023.11.28"]
[Round "3"]
[White "Cidonka"]
[Black "BigAl"]
[Result "0-1"]
[WhiteElo "2280"]
[BlackElo "2545"]
[TimeControl "180+1"]
[EndTime "14:27:23 PST"]
[Termination "BigAl won by resignation"]

1. e4 {[%clk 0:03:00.9]} 1... c6 {[%clk 0:02:59.2]} 2. d4 {[%clk 0:03:00.6]}
2... d5 {[%clk 0:03:00]} 3. e5 {[%clk 0:03:00.8]} 3... Bf5 {[%clk 0:03:00.1]} 4.
Nd2 {[%clk 0:02:59.9]} 4... e6 {[%clk 0:03:00.2]} 5. Nb3 {[%clk 0:03:00.2]} 5...
Ne7 {[%clk 0:03:00.9]} 6. Nf3 {[%clk 0:03:00.3]} 6... Ng6 {[%clk 0:03:01.6]} 7.
Be2 {[%clk 0:02:59.9]} 7... Nd7 {[%clk 0:03:01.9]} 8. O-O {[%clk 0:03:00.2]}
8... f6 {[%clk 0:03:02.7]} 9. exf6 {[%clk 0:02:53]} 9... Qxf6 {[%clk 0:03:03.6]}
10. c4 {[%clk 0:02:47.9]} 10... Bd6 {[%clk 0:03:03]} 11. cxd5 {[%clk 0:02:36.2]}
11... exd5 {[%clk 0:03:03.9]} 12. Bg5 {[%clk 0:02:34.9]} 12... Qf7 {[%clk
0:03:03.9]} 13. Nh4 {[%clk 0:02:24.1]} 13... Nxh4 {[%clk 0:02:46.4]} 14. Bxh4
{[%clk 0:02:24]} 14... O-O {[%clk 0:02:45.2]} 15. Bg3 {[%clk 0:02:24]} 15...
Bxg3 {[%clk 0:02:44.3]} 16. fxg3 {[%clk 0:02:20.1]} 16... Qg6 {[%clk 0:02:33.7]}
17. Qd2 {[%clk 0:02:19.8]} 17... Rae8 {[%clk 0:02:28.6]} 18. Rae1 {[%clk
0:02:12.8]} 18... h6 {[%clk 0:02:13.7]} 19. Bf3 {[%clk 0:01:57.6]} 19... Kh7
{[%clk 0:01:54.4]} 20. Na5 {[%clk 0:01:31.3]} 20... b6 {[%clk 0:01:46.3]} 21.
Nb3 {[%clk 0:01:21.3]} 21... Nf6 {[%clk 0:01:46]} 22. Qc3 {[%clk 0:01:15.7]}
22... Ne4 {[%clk 0:01:40.3]} 23. Bxe4 {[%clk 0:01:15.6]} 23... Bxe4 {[%clk
0:01:40.4]} 24. Nd2 {[%clk 0:01:15.3]} 24... Rxf1+ {[%clk 0:01:37.5]} 25. Rxf1
{[%clk 0:01:12.4]} 25... Bd3 {[%clk 0:01:17.7]} 26. Rc1 {[%clk 0:01:11.5]} 26...
Re2 {[%clk 0:00:53.5]} 27. Nf3 {[%clk 0:01:11.3]} 27... Qe4 {[%clk 0:00:49.9]}
28. Re1 {[%clk 0:01:05.7]} 28... Qe3+ {[%clk 0:00:48.9]} 29. Kh1 {[%clk
0:00:55.3]} 29... c5 {[%clk 0:00:31.8]} 30. Rxe2 {[%clk 0:00:49.3]} 30... Qxe2
{[%clk 0:00:31.6]} 31. Qe1 {[%clk 0:00:48.4]} 31... Qxb2 {[%clk 0:00:27.9]} 32.
dxc5 {[%clk 0:00:25.5]} 32... bxc5 {[%clk 0:00:28.8]} 33. h3 {[%clk 0:00:09.7]}
33... Be4 {[%clk 0:00:28.7]} 34. Nd2 {[%clk 0:00:10.1]} 34... Qd4 {[%clk
0:00:23.7]} 35. Nb3 {[%clk 0:00:04.1]} 35... Qe5 {[%clk 0:00:18.2]} 36. Nxc5
{[%clk 0:00:03]} 36... Bxg2+ {[%clk 0:00:18.4]} 0-1

[Event "Late-Titled-Tuesday-Blitz-November-28-2023"]
[Site "Chess.com"]
[Date "2023.11.28"]
[Round "3"]
[White "hristos03"]
[Black "JiiHart"]
[Result "1-0"]
[WhiteElo "2358"]
[BlackElo "2117"]
[TimeControl "180+1"]
[EndTime "14:27:24 PST"]
[Termination "hristos03 won on time"]

1. e4 {[%clk 0:03:00.1]} 1... c5 {[%clk 0:02:58.7]} 2. Nf3 {[%clk 0:03:00]} 2...
Nc6 {[%clk 0:02:59]} 3. d4 {[%clk 0:03:00.1]} 3... cxd4 {[%clk 0:02:59.1]} 4.
Nxd4 {[%clk 0:03:01]} 4... Nf6 {[%clk 0:02:59.1]} 5. Nc3 {[%clk 0:03:00.5]} 5...
d6 {[%clk 0:02:59.1]} 6. f3 {[%clk 0:02:59.2]} 6... e5 {[%clk 0:02:58.4]} 7. Nb3
{[%clk 0:02:58.7]} 7... Be6 {[%clk 0:02:56]} 8. Be3 {[%clk 0:02:52.4]} 8... Be7
{[%clk 0:02:55.5]} 9. Qe2 {[%clk 0:02:44.4]} 9... O-O {[%clk 0:02:49.9]} 10.
O-O-O {[%clk 0:02:43.1]} 10... a6 {[%clk 0:02:45.3]} 11. Kb1 {[%clk 0:02:37.7]}
11... Qc7 {[%clk 0:02:35.9]} 12. g4 {[%clk 0:02:33.3]} 12... b5 {[%clk
0:02:07.6]} 13. h4 {[%clk 0:02:26.3]} 13... b4 {[%clk 0:01:42.9]} 14. Nd5 {[%clk
0:02:23.8]} 14... Bxd5 {[%clk 0:01:40.8]} 15. exd5 {[%clk 0:02:24]} 15... Na5
{[%clk 0:01:25.3]} 16. h5 {[%clk 0:02:23]} 16... Nd7 {[%clk 0:01:20.1]} 17. g5
{[%clk 0:02:14.7]} 17... Rac8 {[%clk 0:01:13.3]} 18. Bh3 {[%clk 0:02:08.6]}
18... Nc4 {[%clk 0:01:05.9]} 19. Bc1 {[%clk 0:02:00.7]} 19... a5 {[%clk
0:01:05.7]} 20. g6 {[%clk 0:01:57.5]} 20... a4 {[%clk 0:00:57.2]} 21. gxh7+
{[%clk 0:01:35.3]} 21... Kh8 {[%clk 0:00:54]} 22. h6 {[%clk 0:01:22.3]} 22... g6
{[%clk 0:00:46.8]} 23. Bxd7 {[%clk 0:01:07.7]} 23... Qxd7 {[%clk 0:00:21.7]} 24.
Nd2 {[%clk 0:01:07.8]} 24... Nxd2+ {[%clk 0:00:10.6]} 25. Qxd2 {[%clk
0:01:00.1]} 25... b3 {[%clk 0:00:08.5]} 26. cxb3 {[%clk 0:00:42.6]} 26... axb3
{[%clk 0:00:09.4]} 27. a3 {[%clk 0:00:43]} 27... Rc2 {[%clk 0:00:08.3]} 28. Qd3
{[%clk 0:00:43.5]} 28... Qb7 {[%clk 0:00:07]} 29. f4 {[%clk 0:00:39.5]} 29...
Bf6 {[%clk 0:00:04.6]} 30. f5 {[%clk 0:00:29.9]} 30... g5 {[%clk 0:00:03.2]} 31.
Rh3 {[%clk 0:00:30.6]} 31... Rfc8 {[%clk 0:00:02.2]} 32. Qxb3 {[%clk 0:00:24.4]}
32... Qc7 {[%clk 0:00:02.5]} 33. Rhh1 {[%clk 0:00:19.9]} 33... e4 {[%clk
0:00:02.7]} 34. Qb4 {[%clk 0:00:11]} 34... Qc6 {[%clk 0:00:01.8]} 35. Qxe4
{[%clk 0:00:09.9]} 1-0

[Event "Late-Titled-Tuesday-Blitz-November-28-2023"]
[Site "Chess.com"]
[Date "2023.11.28"]
[Round "3"]
[White "djano"]
[Black "randomo"]
[Result "1-0"]
[WhiteElo "2559"]
[BlackElo "2330"]
[TimeControl "180+1"]
[EndTime "14:27:25 PST"]
[Termination "djano won on time"]

1. e4 {[%clk 0:03:00.9]} 1... e5 {[%clk 0:02:59.8]} 2. Nf3 {[%clk 0:03:00.5]}
2... Nc6 {[%clk 0:03:00.4]} 3. Bc4 {[%clk 0:03:00]} 3... Bc5 {[%clk 0:03:00.3]}
4. c3 {[%clk 0:02:59.5]} 4... Qf6 {[%clk 0:02:59.5]} 5. O-O {[%clk 0:02:55]}
5... h6 {[%clk 0:02:58.2]} 6. d4 {[%clk 0:02:55.2]} 6... Bb6 {[%clk 0:02:58.5]}
7. Kh1 {[%clk 0:02:45.7]} 7... d6 {[%clk 0:02:52.3]} 8. Be3 {[%clk 0:02:37]}
8... Nge7 {[%clk 0:02:49.4]} 9. dxe5 {[%clk 0:02:35.5]} 9... dxe5 {[%clk
0:02:49.6]} 10. Bxb6 {[%clk 0:02:31.9]} 10... axb6 {[%clk 0:02:50.5]} 11. Nbd2
{[%clk 0:02:29.9]} 11... O-O {[%clk 0:02:49.4]} 12. a3 {[%clk 0:02:28.9]} 12...
Ng6 {[%clk 0:02:40.5]} 13. Bd5 {[%clk 0:02:23.6]} 13... Nce7 {[%clk 0:02:36.7]}
14. Ba2 {[%clk 0:02:20.7]} 14... Bg4 {[%clk 0:02:34.2]} 15. h3 {[%clk
0:02:16.6]} 15... Bc8 {[%clk 0:02:34.1]} 16. Rg1 {[%clk 0:02:11.3]} 16... Nf4
{[%clk 0:02:34]} 17. Nf1 {[%clk 0:02:10.7]} 17... g5 {[%clk 0:02:25.4]} 18. Ne3
{[%clk 0:02:09.8]} 18... Be6 {[%clk 0:02:13.7]} 19. Bxe6 {[%clk 0:02:09.5]}
19... fxe6 {[%clk 0:02:13.4]} 20. Ng4 {[%clk 0:02:01.8]} 20... Qg7 {[%clk
0:02:10.5]} 21. Ngxe5 {[%clk 0:02:00]} 21... Rfd8 {[%clk 0:02:04.3]} 22. Qb3
{[%clk 0:01:59.1]} 22... Rd6 {[%clk 0:01:56.8]} 23. Rad1 {[%clk 0:01:56.2]}
23... Rad8 {[%clk 0:01:52.8]} 24. Rxd6 {[%clk 0:01:56.3]} 24... Rxd6 {[%clk
0:01:53.7]} 25. Ng4 {[%clk 0:01:55]} 25... h5 {[%clk 0:01:45.2]} 26. Ne3 {[%clk
0:01:48]} 26... Nd3 {[%clk 0:01:45.1]} 27. Qc2 {[%clk 0:01:41.8]} 27... g4
{[%clk 0:01:35.6]} 28. Ne1 {[%clk 0:01:28.9]} 28... Nf4 {[%clk 0:01:22.1]} 29.
e5 {[%clk 0:01:17.9]} 29... Rd8 {[%clk 0:01:13.5]} 30. Qe4 {[%clk 0:01:14.8]}
30... Neg6 {[%clk 0:00:52.3]} 31. Kh2 {[%clk 0:01:04.3]} 31... Qxe5 {[%clk
0:00:46.6]} 32. Qxe5 {[%clk 0:01:04.5]} 32... Nxe5 {[%clk 0:00:47.4]} 33. hxg4
{[%clk 0:01:04.8]} 33... hxg4 {[%clk 0:00:46.5]} 34. Rh1 {[%clk 0:00:58.7]}
34... Rd2 {[%clk 0:00:40.5]} 35. Kg3 {[%clk 0:00:36.4]} 35... Nfg6 {[%clk
0:00:25.6]} 36. Nxg4 {[%clk 0:00:36.4]} 36... Nxg4 {[%clk 0:00:25.1]} 37. Kxg4
{[%clk 0:00:37.3]} 37... Rxf2 {[%clk 0:00:25.3]} 38. Rh3 {[%clk 0:00:30.2]}
38... Ne5+ {[%clk 0:00:17.9]} 39. Kh5 {[%clk 0:00:28.9]} 39... Rxb2 {[%clk
0:00:14.8]} 40. Rg3+ {[%clk 0:00:28]} 40... Kf7 {[%clk 0:00:13.6]} 41. Re3
{[%clk 0:00:28.6]} 41... Nc4 {[%clk 0:00:10.9]} 42. Rf3+ {[%clk 0:00:28.6]}
42... Ke7 {[%clk 0:00:10.6]} 43. g4 {[%clk 0:00:29.2]} 43... Ne5 {[%clk
0:00:03.4]} 44. Rg3 {[%clk 0:00:27.9]} 44... Rh2+ {[%clk 0:00:02.7]} 45. Kg5
{[%clk 0:00:28.5]} 45... Nf7+ {[%clk 0:00:02.8]} 46. Kf4 {[%clk 0:00:29.2]}
46... Rf2+ {[%clk 0:00:02.5]} 47. Ke3 {[%clk 0:00:28.9]} 1-0

[Event "Late-Titled-Tuesday-Blitz-November-28-2023"]
[Site "Chess.com"]
[Date "2023.11.28"]
[Round "3"]
[White "Rodalquilar"]
[Black "LiemLe"]
[Result "0-1"]
[WhiteElo "2739"]
[BlackElo "3129"]
[TimeControl "180+1"]
[EndTime "14:27:27 PST"]
[Termination "LiemLe won on time"]

1. d4 {[%clk 0:03:00.9]} 1... Nf6 {[%clk 0:02:59.4]} 2. Nf3 {[%clk 0:03:01.2]}
2... d5 {[%clk 0:02:59.1]} 3. Bf4 {[%clk 0:03:01.4]} 3... c5 {[%clk 0:02:58.7]}
4. e3 {[%clk 0:03:01.7]} 4... Nc6 {[%clk 0:02:59.1]} 5. Nbd2 {[%clk 0:03:01.2]}
5... e6 {[%clk 0:02:59.5]} 6. c3 {[%clk 0:03:01.2]} 6... cxd4 {[%clk 0:03:00.2]}
7. exd4 {[%clk 0:03:01.5]} 7... Nh5 {[%clk 0:03:00.5]} 8. Be3 {[%clk 0:03:01.2]}
8... Bd6 {[%clk 0:03:00.5]} 9. Ne5 {[%clk 0:03:00.8]} 9... Nf6 {[%clk
0:03:00.6]} 10. Ndf3 {[%clk 0:02:51]} 10... Nd7 {[%clk 0:02:57]} 11. Nxd7 {[%clk
0:02:41.7]} 11... Bxd7 {[%clk 0:02:57.9]} 12. Bd3 {[%clk 0:02:42.1]} 12... Rc8
{[%clk 0:02:37.6]} 13. O-O {[%clk 0:02:36.5]} 13... O-O {[%clk 0:02:30.9]} 14.
Re1 {[%clk 0:02:24.6]} 14... h6 {[%clk 0:02:15.6]} 15. Qd2 {[%clk 0:02:05.2]}
15... Qf6 {[%clk 0:02:12.2]} 16. Rad1 {[%clk 0:01:54.9]} 16... Rfe8 {[%clk
0:02:07.8]} 17. Bb1 {[%clk 0:01:54.7]} 17... Ne7 {[%clk 0:01:32.2]} 18. Ne5
{[%clk 0:01:18.3]} 18... Ba4 {[%clk 0:01:29.5]} 19. Rc1 {[%clk 0:01:09.2]} 19...
Nf5 {[%clk 0:01:21]} 20. Bf4 {[%clk 0:01:09.4]} 20... Qd8 {[%clk 0:01:16.8]} 21.
Bxf5 {[%clk 0:01:03.9]} 21... exf5 {[%clk 0:01:17.7]} 22. Nd3 {[%clk 0:01:03.9]}
22... Bf8 {[%clk 0:01:12.9]} 23. Rxe8 {[%clk 0:00:59.1]} 23... Bxe8 {[%clk
0:01:13.8]} 24. Re1 {[%clk 0:00:54.7]} 24... f6 {[%clk 0:01:08.8]} 25. h4 {[%clk
0:00:43.8]} 25... Bf7 {[%clk 0:01:00.7]} 26. f3 {[%clk 0:00:43.7]} 26... b6
{[%clk 0:00:58.9]} 27. Qf2 {[%clk 0:00:43.7]} 27... g5 {[%clk 0:00:54.8]} 28.
Qg3 {[%clk 0:00:37.3]} 28... Bg6 {[%clk 0:00:43.3]} 29. Kf2 {[%clk 0:00:23.4]}
29... Kf7 {[%clk 0:00:33.8]} 30. hxg5 {[%clk 0:00:21.5]} 30... hxg5 {[%clk
0:00:34.7]} 31. Rh1 {[%clk 0:00:18]} 31... Bg7 {[%clk 0:00:26.7]} 32. Bd6 {[%clk
0:00:15]} 32... f4 {[%clk 0:00:25.3]} 33. Bxf4 {[%clk 0:00:11.8]} 33... Bxd3
{[%clk 0:00:24.8]} 34. Bd6 {[%clk 0:00:08.1]} 34... Qd7 {[%clk 0:00:24.1]} 35.
Rd1 {[%clk 0:00:03.9]} 35... Bf5 {[%clk 0:00:21.9]} 36. Qh2 {[%clk 0:00:03.4]}
36... Rh8 {[%clk 0:00:20.6]} 37. Qg3 {[%clk 0:00:03.3]} 37... Re8 {[%clk
0:00:21.2]} 38. Qh2 {[%clk 0:00:03.3]} 38... Qb5 {[%clk 0:00:21.1]} 39. Rd2
{[%clk 0:00:03]} 39... Qa4 {[%clk 0:00:19.5]} 40. b3 {[%clk 0:00:02.7]} 40...
Qc6 {[%clk 0:00:19.2]} 41. Bb4 {[%clk 0:00:02.5]} 41... a5 {[%clk 0:00:19.3]}
0-1

[Event "Late-Titled-Tuesday-Blitz-November-28-2023"]
[Site "Chess.com"]
[Date "2023.11.28"]
[Round "3"]
[White "grandemestregringo"]
[Black "Elsa167"]
[Result "0-1"]
[WhiteElo "2638"]
[BlackElo "2921"]
[TimeControl "180+1"]
[EndTime "14:27:27 PST"]
[Termination "Elsa167 won on time"]

1. f4 {[%clk 0:03:00.9]} 1... d5 {[%clk 0:02:55.8]} 2. Nf3 {[%clk 0:03:01.1]}
2... g6 {[%clk 0:02:56.1]} 3. e3 {[%clk 0:02:58.8]} 3... Bg7 {[%clk 0:02:56.7]}
4. c4 {[%clk 0:02:58.3]} 4... c5 {[%clk 0:02:53.9]} 5. cxd5 {[%clk 0:02:55.3]}
5... Qxd5 {[%clk 0:02:53.5]} 6. Nc3 {[%clk 0:02:55.6]} 6... Qd8 {[%clk
0:02:52.3]} 7. Qb3 {[%clk 0:02:53]} 7... Nf6 {[%clk 0:02:50.6]} 8. Bb5+ {[%clk
0:02:51.2]} 8... Nbd7 {[%clk 0:02:35.3]} 9. Ng5 {[%clk 0:02:42.5]} 9... O-O
{[%clk 0:02:34.5]} 10. Bc4 {[%clk 0:02:42.7]} 10... Qe8 {[%clk 0:02:29.7]} 11.
Nb5 {[%clk 0:02:34.9]} 11... Nb6 {[%clk 0:01:53]} 12. Nc7 {[%clk 0:02:11.3]}
12... Qc6 {[%clk 0:01:53]} 13. Bxf7+ {[%clk 0:01:58.3]} 13... Kh8 {[%clk
0:01:52.8]} 14. Nxa8 {[%clk 0:01:49.3]} 14... Qxg2 {[%clk 0:01:51.5]} 15. Rf1
{[%clk 0:01:43.7]} 15... Bg4 {[%clk 0:01:47.5]} 16. Bc4 {[%clk 0:01:40.9]} 16...
Nxc4 {[%clk 0:01:20.6]} 17. Qxc4 {[%clk 0:01:39.9]} 17... Qxh2 {[%clk
0:01:15.7]} 18. Nc7 {[%clk 0:01:24.9]} 18... Nh5 {[%clk 0:00:27.8]} 19. Nce6
{[%clk 0:01:07.8]} 19... Rf6 {[%clk 0:00:15.9]} 20. Nd8 {[%clk 0:00:40.8]} 20...
h6 {[%clk 0:00:15]} 21. Ndf7+ {[%clk 0:00:39.7]} 21... Rxf7 {[%clk 0:00:12.9]}
22. Nxf7+ {[%clk 0:00:40.1]} 22... Kh7 {[%clk 0:00:13.5]} 23. Rf2 {[%clk
0:00:32.1]} 23... Qh4 {[%clk 0:00:12.6]} 24. Ne5 {[%clk 0:00:29.3]} 24... Ng3
{[%clk 0:00:11.3]} 25. Nxg4 {[%clk 0:00:26.9]} 25... Qxg4 {[%clk 0:00:04.4]} 26.
Rg2 {[%clk 0:00:21.5]} 26... Qf3 {[%clk 0:00:04.2]} 27. Rxg3 {[%clk 0:00:21.3]}
27... Qxg3+ {[%clk 0:00:04.6]} 28. Kd1 {[%clk 0:00:21.5]} 28... h5 {[%clk
0:00:04.7]} 29. Kc2 {[%clk 0:00:20.2]} 29... Qg2 {[%clk 0:00:04.5]} 30. Rb1
{[%clk 0:00:12]} 30... h4 {[%clk 0:00:05.1]} 31. b3 {[%clk 0:00:09.2]} 31... h3
{[%clk 0:00:05.7]} 32. Bb2 {[%clk 0:00:09.3]} 32... h2 {[%clk 0:00:05.5]} 33.
Qf7 {[%clk 0:00:09.1]} 33... Qe4+ {[%clk 0:00:03.3]} 0-1